bitfinex/quotes_ETHUSD_20250210
["timestamp","ask_amount","ask_price","bid_price","bid_amount"]
[1739205965807,0.7635,2663.7,2663.4,0.08142195]
[1739205966309,0.7635,2663.7,2663.5,0.08131253]
[1739205966518,3.75443,2663.6,2663.0,3.75506]
[1739205966854,7.30246825,2663.5,2663.1,0.08175027]
[1739205967009,3.54794825,2663.5,2663.1,3.83675027]
[1739205968011,3.54794825,2663.5,2663.1,0.08175027]
[1739205968490,7.30246825,2663.5,2663.0,3.75514]
[1739205968650,7.30246825,2663.5,2663.2,0.08164082]
[1739205968851,7.30246825,2663.5,2663.1,0.08175027]
[1739205969077,3.54794825,2663.5,2663.3,0.08153138]
[1739205969296,3.54794825,2663.5,2663.3,3.7547]
[1739205969479,3.54794825,2663.5,2663.4,0.08142195]
[1739205969784,3.54794825,2663.5,2663.2,3.75486]
[1739205969959,3.54794825,2663.5,2663.4,0.08142195]
[1739205970162,3.54794825,2663.5,2663.3,3.83624138]
[1739205970368,3.54794825,2663.5,2663.4,0.08142195]
[1739205970748,3.54794825,2663.5,2663.1,3.75494]
[1739205971064,7.30239825,2663.5,2663.4,0.08142195]
[1739205971268,0.7635,2663.4,2662.8,3.75533]
[1739205971571,0.7635,2663.4,2662.7,0.03755283]
[1739205971747,3.54794825,2663.5,2663.2,3.75475]
[1739205971947,3.54794825,2663.5,2663.1,3.75493]
[1739205972500,3.54794825,2663.5,2663.0,3.75513]
[1739205972785,7.30249825,2663.5,2662.8,3.75535]
[1739205972969,7.30291825,2663.2,2662.5,12.53702]
[1739205973174,11.05792825,2663.2,2662.7,3.75558]
[1739205973370,4.31144825,2662.9,2661.9,0.8313]
[1739205973588,4.31144825,2662.9,2662.0,3.75657]
[1739205973750,8.06682825,2662.9,2662.2,3.75622]
[1739205973953,8.06682825,2662.9,2662.4,3.75599]
[1739205974486,8.06682825,2662.9,2662.2,3.75615]
[1739205974651,8.06682825,2662.9,2662.3,3.75607]
[1739205974846,8.06682825,2662.9,2662.3,3.75615]
[1739205975383,0.7635,2662.9,2662.7,3.75545]
[1739205975696,0.7635,2662.9,2662.6,3.75563]
[1739205975841,4.51854,2663.1,2662.6,3.75572]
[1739205976592,4.51854,2663.1,2662.5,3.75574]
[1739205976790,3.54794825,2662.9,2662.5,3.75574]
[1739205977091,7.30326825,2662.9,2662.5,3.75574]
[1739205977246,7.30326825,2662.9,2662.3,3.75602]
[1739205977447,0.8178,2662.8,2662.3,3.75602]
[1739205977643,3.54794825,2662.6,2662.1,3.7563]
[1739205978073,3.54794825,2662.6,2662.3,3.75614]
[1739205978281,7.30369825,2662.6,2662.0,3.75653]
[1739205978453,7.30369825,2662.6,2662.0,3.75647]
[1739205978454,11.05949825,2662.6,2662.0,3.75647]
[1739205978656,11.05949825,2662.6,2661.9,4.55679]
[1739205978657,3.75596,2662.5,2661.9,4.55679]
[1739205978984,3.75596,2662.5,2662.0,3.75647]
[1739205979224,0.8178,2662.3,2661.9,3.75659]
[1739205979373,4.36574825,2662.3,2661.7,0.8002]
[1739205979576,4.36574825,2662.3,2661.9,3.75658]
[1739205979891,4.36574825,2662.3,2662.0,3.75654]
[1739205980066,4.36574825,2662.3,2661.9,3.75658]
[1739205980264,4.36574825,2662.3,2662.1,0.08044274]
[1739205980481,4.36574825,2662.3,2662.0,3.83701228]
[1739205980811,4.36574825,2662.3,2662.1,0.08044274]
[1739205981911,4.36574825,2662.3,2662.1,3.83686274]
[1739205982123,4.36574825,2662.3,2662.1,0.08044274]
[1739205982263,0.755,2662.7,2662.3,3.75603]
[1739205982461,0.755,2662.7,2662.3,3.75615]
[1739205982677,0.755,2662.7,2662.4,0.08011417]
[1739205982907,0.755,2662.7,2662.4,3.83604417]
[1739205983810,0.755,2662.7,2662.4,0.08011417]
[1739205984010,4.51062,2662.7,2662.4,0.08011417]
[1739205984223,4.51062,2662.7,2662.2,3.75618]
[1739205984512,7.30366825,2662.6,2662.1,3.75642]
[1739205984863,7.30366825,2662.6,2662.2,0.08033321]
[1739205985066,3.54794825,2662.3,2662.2,0.08033321]
[1739205985570,3.54794825,2662.3,2662.2,0.08036122]
[1739205985571,7.30412825,2662.3,2662.2,0.08036122]
[1739205985879,7.30412825,2662.3,2661.8,3.75681]
[1739205985880,2.88585828,2662.3,2661.8,3.75681]
[1739205986082,6.64200828,2662.3,2662.2,0.08036122]
[1739205986298,6.64200828,2662.3,2661.6,3.75707]
[1739205986299,3.7564,2662.2,2661.6,3.75707]
[1739205986468,0.755,2662.1,2661.6,3.75707]
[1739205986668,4.51144,2662.1,2661.6,3.75707]
[1739205986926,0.755,2662.1,2661.7,3.75694]
[1739205988069,2.88585828,2662.0,2661.5,3.75727]
[1739205988227,6.64245828,2662.0,2661.6,3.75712]
[1739205988573,2.88585828,2662.0,2661.7,3.75692]
[1739205988772,2.88585828,2662.0,2661.6,3.75712]
[1739205989567,2.88585828,2662.0,2661.6,7.51418]
[1739205989862,2.88585828,2662.0,2661.6,3.75706]
[1739205991975,6.64249828,2662.0,2661.5,3.7572]
[1739205992426,6.64249828,2662.0,2661.4,3.75732]
[1739205992632,2.88585828,2662.0,2661.6,3.75701]
[1739205992865,2.88585828,2662.0,2661.6,3.75703]
[1739205993044,2.88585828,2662.0,2661.3,0.8166]
[1739205993371,2.88585828,2662.0,2661.2,6.75768]
[1739205993372,2.88585828,2662.3,2661.8,4.57335]
[1739205993537,3.75631,2662.2,2661.6,3.75703]
[1739205993739,3.75631,2662.2,2661.7,3.75691]
[1739205994312,3.75631,2662.2,2661.6,3.75702]
[1739205994650,2.88585828,2662.0,2661.6,3.75702]
[1739205994848,6.64243828,2662.0,2661.4,4.57391]
[1739205995085,4.51183,2661.9,2661.7,0.08125444]
[1739205995371,4.51183,2661.9,2661.8,0.08114487]
[1739205995762,4.51183,2661.9,2661.4,7.51465]
[1739205996071,4.51183,2661.9,2661.5,0.08147359]
[1739205996863,2.88585828,2661.7,2661.5,0.08147359]
[1739205997185,6.64286828,2661.7,2661.1,3.75774]
[1739205997339,2.88585828,2661.4,2660.9,0.8166]
[1739205997545,3.64085828,2661.7,2661.0,0.03757637]
[1739205997793,3.64085828,2662.0,2661.8,3.75681]
[1739205997944,0.755,2662.2,2661.8,3.75681]
[1739205998459,6.64210828,2662.3,2661.8,3.75681]
[1739205998861,6.64210828,2662.3,2661.8,7.51357]
[1739205999186,2.88585828,2662.3,2662.0,3.75655]
[1739205999389,2.88585828,2662.3,2661.8,7.51348]
[1739205999690,6.64210828,2662.3,2661.8,3.75672]
[1739205999895,0.755,2661.9,2661.6,3.75705]
[1739206000496,0.755,2661.9,2661.6,7.51412]
[1739206000794,0.755,2661.9,2661.7,3.75698]
[1739206001355,4.51172,2661.9,2661.4,7.51464]
[1739206001553,4.51172,2661.9,2661.5,3.75727]
[1739206002605,0.755,2661.9,2661.5,3.75727]
[1739206002807,0.755,2661.9,2661.7,3.7569]
[1739206003297,0.755,2661.9,2661.5,3.75721]
[1739206003624,0.755,2661.9,2661.6,3.75713]
[1739206004622,0.755,2661.9,2661.4,3.75728]
[1739206004800,0.755,2661.9,2661.5,3.75725]
[1739206005225,0.755,2661.9,2661.5,7.5145]
[1739206005525,0.755,2661.9,2661.5,3.75725]
[1739206005885,0.755,2661.9,2661.5,3.7572]
[1739206006323,0.755,2661.9,2661.6,3.75706]
[1739206006525,0.755,2661.9,2661.5,3.7572]
[1739206007330,0.755,2661.9,2661.7,3.75697]
[1739206007633,0.755,2661.9,2661.7,3.75691]
[1739206007937,0.75,2662.2,2661.8,3.75685]
[1739206008241,0.75,2662.2,2661.8,3.75676]
[1739206008419,4.50637,2662.2,2661.6,4.5804]
[1739206008620,0.75,2662.2,2661.8,3.75676]
[1739206010060,0.75,2662.2,2661.9,0.0812595]
[1739206010261,2.88585828,2662.0,2661.9,0.0812595]
[1739206010755,0.75,2661.9,2661.4,3.75733]
[1739206010956,0.75,2661.9,2661.5,3.75725]
[1739206011125,6.64291828,2661.7,2661.2,3.75762]
[1739206011328,2.88585828,2661.7,2661.2,3.7576]
[1739206011538,2.88585828,2661.7,2661.4,3.75736]
[1739206011746,2.88585828,2661.7,2661.3,3.75749]
[1739206011945,2.88585828,2661.7,2661.5,3.75725]
[1739206012217,2.88585828,2661.7,2661.4,3.7574]
[1739206013455,2.88585828,2661.7,2661.3,3.75749]
[1739206013634,2.88585828,2661.7,2661.3,7.51493]
[1739206014133,2.88585828,2661.7,2661.3,3.75744]
[1739206014330,2.88585828,2661.7,2661.3,7.51491]
[1739206014535,2.88585828,2661.7,2661.3,3.75744]
[1739206014948,6.64291828,2661.7,2661.1,8.3389]
[1739206015147,2.88585828,2661.7,2660.8,0.8234]
[1739206015335,0.75,2661.5,2661.1,3.7578]
[1739206015538,0.75,2661.5,2661.1,7.5156]
[1739206015849,0.75,2661.5,2661.2,3.75769]
[1739206016049,0.75,2661.5,2661.1,7.51554]
[1739206016562,0.75,2661.5,2661.1,3.75774]
[1739206016724,4.50734,2661.5,2660.9,3.75798]
[1739206017137,0.75,2661.5,2660.8,0.8234]
[1739206017336,0.75,2661.5,2661.1,7.51545]
[1739206017873,0.75,2661.5,2661.2,3.75762]
[1739206018572,0.75,2661.5,2661.1,3.75771]
[1739206018774,4.50729,2661.5,2661.1,3.75771]
[1739206018975,0.75,2661.5,2661.1,3.75771]
[1739206020234,0.75,2661.5,2660.9,3.75803]
[1739206020435,6.64372828,2661.1,2660.5,5.08788208]
[1739206020711,3.75834,2660.8,2660.3,0.7629]
[1739206020865,2.88585828,2660.8,2660.2,3.75902]
[1739206021064,3.75861,2660.6,2660.1,8.84705208]
[1739206021270,3.67885828,2660.5,2660.0,0.39217465]
[1739206021449,3.67885828,2660.5,2660.0,3.75931]
[1739206021450,7.43754828,2660.5,2660.0,3.75931]
[1739206021647,7.43755828,2660.5,2659.9,3.75947]
[1739206021833,3.75888,2660.4,2659.9,3.75946]
[1739206022058,11.19637828,2660.5,2659.9,3.75946]
[1739206022282,7.43755828,2660.5,2659.9,3.75946]
[1739206022481,7.43755828,2660.5,2660.0,3.75934]
[1739206022675,3.67885828,2660.5,2660.2,3.75899]
[1739206023240,3.67885828,2660.5,2660.2,7.51803]
[1739206023431,3.67885828,2660.5,2660.3,3.75894]
[1739206023633,2.88585828,2660.8,2660.5,3.75859]
[1739206023882,2.88585828,2660.8,2660.7,3.7584]
[1739206024087,2.88585828,2660.8,2660.5,3.75858]
[1739206024265,2.88585828,2660.8,2660.5,7.51719]
[1739206024590,2.88585828,2660.8,2660.5,3.75858]
[1739206024739,6.64417828,2660.8,2660.2,3.75902]
[1739206025091,2.88585828,2660.5,2660.3,0.08317843]
[1739206025436,0.793,2660.4,2659.8,3.0]
[1739206025632,4.55192,2660.4,2659.8,6.75959]
[1739206025866,4.55192,2660.4,2659.9,3.75949]
[1739206026086,0.793,2660.4,2660.0,3.75931]
[1739206026284,0.793,2660.4,2660.1,3.75918]
[1739206026486,2.88585828,2660.5,2660.2,3.75908]
[1739206026783,3.43585828,2660.8,2660.3,3.75889]
[1739206027167,7.19418828,2660.8,2660.2,3.75908]
[1739206027338,4.55185,2660.4,2659.7,0.7629]
[1739206027535,0.793,2660.4,2659.8,3.75958]
[1739206027982,0.793,2660.4,2660.0,3.75937]
[1739206028388,0.793,2660.4,2660.0,7.51874]
[1739206028550,0.793,2660.4,2660.1,3.75924]
[1739206028756,0.793,2660.7,2660.2,3.75911]
[1739206029239,0.793,2660.7,2660.3,3.75889]
[1739206029740,0.793,2660.9,2660.3,3.75889]
[1739206030051,0.793,2660.9,2660.1,3.75922]
[1739206030052,2.88585828,2660.8,2660.1,3.75922]
[1739206030390,2.88585828,2660.8,2660.1,3.75917]
[1739206030690,2.88585828,2660.8,2660.4,3.75874]
[1739206031074,3.75841,2660.7,2660.2,3.75902]
[1739206031267,6.64414828,2660.8,2660.3,3.75894]
[1739206031883,2.88585828,2660.8,2660.2,3.759]
[1739206032114,2.88585828,2660.8,2660.6,3.75853]
[1739206032401,2.88585828,2660.8,2660.4,3.75874]
[1739206032771,6.64412828,2660.8,2660.4,3.75874]
[1739206032968,0.793,2660.7,2660.0,0.7629]
[1739206033170,4.55148,2660.7,2660.2,3.75904]
[1739206033370,0.793,2660.7,2660.2,3.75904]
[1739206033660,0.793,2660.7,2660.5,3.75859]
[1739206034472,0.793,2660.7,2660.4,3.75882]
[1739206034779,0.7764,2660.9,2660.3,3.75891]
[1739206035098,0.7764,2660.9,2660.5,3.75865]
[1739206035681,0.7764,2660.9,2660.6,3.75851]
[1739206037305,0.7764,2660.9,2660.1,0.7666]
[1739206037472,3.75834,2660.8,2660.3,3.75897]
[1739206038402,0.7764,2660.6,2660.1,3.75917]
[1739206038705,3.7587,2660.5,2660.0,7.51861]
[1739206039002,4.53495,2660.6,2660.0,3.7593]
[1739206039678,4.53495,2660.6,2660.0,7.51861]
[1739206039879,4.53495,2660.6,2660.1,3.7592]
[1739206040212,4.53495,2660.6,2660.1,3.84314926]
[1739206040381,3.75871,2660.5,2660.1,0.08394926]
[1739206040577,3.75871,2660.5,2660.1,3.84319926]
[1739206040908,0.7764,2660.6,2660.1,0.08394926]
[1739206041109,0.7764,2660.6,2660.2,3.75904]
[1739206041270,0.7764,2660.6,2660.3,3.75896]
[1739206041472,0.7764,2660.6,2660.3,0.08379222]
[1739206041812,0.7764,2660.6,2660.1,3.75923]
[1739206042039,4.53495,2660.6,2660.4,0.08367631]
[1739206042171,4.53495,2660.6,2660.1,3.75923]
[1739206042373,4.53495,2660.6,2660.2,0.08389567]
[1739206042702,0.7764,2660.6,2660.3,3.75888]
[1739206043102,0.7764,2660.6,2660.4,0.08366072]
[1739206043972,0.7764,2660.6,2660.0,3.75928]
[1739206044307,4.53502,2660.6,2660.1,3.84319978]
[1739206044602,7.51747,2660.5,2660.1,0.08398978]
[1739206044811,7.5175,2660.5,2660.1,0.08398978]
[1739206045008,0.7764,2660.2,2660.1,0.08398978]
[1739206045398,0.7764,2660.2,2659.8,3.75958]
[1739206045708,0.7764,2660.2,2659.9,3.84370985]
[1739206046615,0.7764,2660.2,2659.9,0.08419985]
[1739206046817,4.53579,2660.0,2659.9,0.08419985]
[1739206047114,3.7599,2659.7,2659.1,0.7666]
[1739206047314,3.76,2659.6,2659.1,4.5272]
[1739206047514,3.76,2659.6,2659.2,0.08496806]
[1739206048527,3.66225828,2659.9,2659.4,3.76013]
[1739206048681,3.66225828,2659.9,2659.2,7.60579806]
[1739206048682,3.75968,2659.8,2659.2,7.60579806]
[1739206049026,3.75968,2659.8,2659.2,3.76039]
[1739206049174,3.75968,2659.8,2659.3,0.08485829]
[1739206049377,3.76,2659.6,2659.0,7.52142]
[1739206049587,0.7764,2659.5,2659.1,3.84609952]
[1739206051217,3.75968,2659.8,2659.2,3.76049]
[1739206051405,0.7764,2659.7,2659.3,3.76037]
[1739206051601,0.7764,2659.7,2659.4,0.08511021]
[1739206051983,0.7764,2659.7,2659.2,3.76049]
[1739206052196,0.7764,2659.7,2659.3,0.08521997]
[1739206052410,0.7764,2659.7,2659.2,7.5209]
[1739206052580,0.7764,2659.7,2659.4,0.08511021]
[1739206052921,0.7764,2659.7,2659.2,3.76041]
[1739206053072,0.7764,2659.7,2659.5,0.08500046]
[1739206053279,4.53626,2659.7,2659.2,3.76041]
[1739206053478,4.53626,2659.7,2659.6,0.08489071]
[1739206053708,4.53626,2659.7,2659.2,3.76041]
[1739206053914,4.53626,2659.7,2659.6,0.08489071]
[1739206054089,0.7764,2659.7,2659.3,3.76029]
[1739206054295,0.7764,2659.7,2659.6,0.08489071]
[1739206054915,0.7764,2659.7,2659.3,3.76029]
[1739206055106,0.7764,2659.7,2659.6,0.08489071]
[1739206055305,0.7764,2659.7,2659.6,3.75996]
[1739206055486,0.7764,2660.2,2659.9,3.75945]
[1739206055883,0.7764,2660.2,2660.0,0.08474802]
[1739206056308,3.75925,2660.1,2659.7,3.7597]
[1739206056719,3.75925,2660.1,2659.6,3.75992]
[1739206056919,3.75925,2660.1,2659.5,3.76001]
[1739206057121,3.75925,2660.1,2659.6,7.51986]
[1739206057329,3.75925,2660.1,2659.6,3.75993]
[1739206057827,0.7764,2660.2,2659.4,4.52677]
[1739206058030,3.75941,2660.0,2659.5,3.75999]
[1739206058212,4.53594,2659.9,2659.2,3.76052]
[1739206058535,8.2956,2659.9,2659.3,3.76031]
[1739206059105,4.53594,2659.9,2659.2,3.76044]
[1739206059440,4.53594,2659.9,2659.4,3.76022]
[1739206059592,4.53594,2659.9,2659.5,3.7601]
[1739206060319,0.7764,2659.9,2659.6,3.75987]
[1739206060496,3.75935,2660.1,2659.7,4.52641]
[1739206060826,3.75951,2660.0,2659.5,3.7601]
[1739206061128,3.75955,2659.9,2659.5,3.7601]
[1739206062261,3.7599,2659.7,2659.2,3.76042]
[1739206062775,3.75998,2659.6,2659.1,4.55045]
[1739206063350,3.7599,2659.7,2659.2,3.76047]
[1739206063566,3.76004,2659.6,2659.1,4.55045]
[1739206063889,3.76004,2659.6,2659.1,3.76055]
[1739206064096,3.7599,2659.7,2659.0,3.76078]
[1739206064265,3.7599,2659.7,2659.1,3.76058]
[1739206064446,3.75996,2659.6,2659.2,3.76051]
[1739206064651,3.75996,2659.6,2659.1,3.76064]
[1739206066001,3.76014,2659.5,2659.0,3.76078]
[1739206066177,3.75995,2659.7,2659.1,3.76059]
[1739206066500,3.75996,2659.6,2659.2,3.76046]
[1739206066876,0.7795,2659.8,2658.9,0.7899]
[1739206067076,0.7795,2659.8,2659.5,3.76002]
[1739206067384,0.7795,2659.8,2659.5,3.7601]
[1739206067589,0.7795,2659.8,2659.4,8.33888]
[1739206067762,0.7795,2659.8,2659.4,4.57873]
[1739206067964,0.7795,2659.8,2659.5,3.76]
[1739206068860,6.64532828,2660.0,2659.5,3.76]
[1739206069478,3.75956,2659.9,2659.5,3.76]
[1739206069892,3.75956,2659.9,2659.4,4.57875]
[1739206070088,3.75956,2659.9,2659.6,0.08504967]
[1739206070404,3.75956,2659.9,2659.7,0.08493993]
[1739206070607,3.75956,2659.9,2659.5,3.7601]
[1739206070760,3.75956,2659.9,2659.6,0.08504967]
[1739206071902,4.56984,2660.1,2659.4,0.8186]
[1739206072117,6.1605,2660.4,2659.8,0.8186]
[1739206072309,0.8105,2660.8,2660.4,3.75872]
[1739206072508,0.8105,2660.8,2660.4,3.75871]
[1739206072693,0.8105,2660.8,2660.5,0.08404364]
[1739206073495,4.56884,2660.8,2660.5,0.08404364]
[1739206073836,4.56884,2660.8,2660.2,4.57764]
[1739206074116,4.56884,2660.8,2660.6,0.08377496]
[1739206074322,4.56884,2660.8,2660.3,3.75896]
[1739206074631,0.8105,2660.8,2660.5,3.75867]
[1739206074922,0.8105,2660.8,2660.6,0.08377496]
[1739206075286,0.8105,2660.8,2660.4,3.75874]
[1739206075491,0.8105,2660.8,2660.7,0.0836653]
[1739206076031,0.8105,2660.8,2660.5,3.75867]
[1739206076188,0.8105,2660.8,2660.6,0.08377496]
[1739206076910,0.8105,2660.8,2660.4,3.75874]
[1739206077424,0.8105,2660.8,2660.2,4.57762]
[1739206077425,3.75843,2660.7,2660.5,0.08388462]
[1739206077622,0.8105,2660.8,2660.0,4.57796]
[1739206077804,0.8105,2660.8,2660.1,0.08432335]
[1739206078122,3.75863,2660.6,2660.1,3.84355335]
[1739206078637,0.8105,2660.5,2660.1,3.84355335]
[1739206078834,4.56928,2660.5,2660.1,0.08432335]
[1739206079038,4.56928,2660.5,2660.0,3.75931]
[1739206079239,4.56928,2660.5,2660.1,0.08432335]
[1739206079447,3.75883,2660.4,2659.9,3.7594]
[1739206079645,0.55,2660.4,2660.2,0.08416066]
[1739206079788,0.8105,2660.5,2659.9,3.75953]
[1739206079989,0.7865,2660.7,2660.0,0.08442682]
[1739206080288,0.55,2660.3,2659.8,0.8186]
[1739206080620,4.30907,2660.3,2659.8,3.75966]
[1739206080829,0.55,2660.3,2659.9,0.08452406]
[1739206081031,0.55,2660.3,2660.0,3.75938]
[1739206081195,0.55,2660.3,2660.1,0.08430465]
[1739206081546,0.7891,2660.6,2660.2,3.75908]
[1739206081698,0.55,2660.5,2660.2,3.75908]
[1739206081901,0.55,2660.5,2660.3,0.08408526]
[1739206082317,0.55,2660.5,2660.2,3.75908]
[1739206082518,0.55,2660.5,2660.4,0.08397558]
[1739206082829,0.55,2660.5,2660.2,3.75908]
[1739206082996,0.55,2660.5,2660.3,0.08408526]
[1739206083364,0.55,2660.5,2660.2,3.75908]
[1739206083496,0.7891,2660.6,2660.4,3.84280558]
[1739206083694,0.55,2660.7,2660.4,3.75883]
[1739206084025,0.7891,2661.1,2660.5,0.08386591]
[1739206084241,0.7891,2661.1,2660.8,3.75822]
[1739206084400,3.75752,2661.4,2660.9,3.84126152]
[1739206084401,0.7891,2661.4,2660.9,3.84126152]
[1739206084720,0.7891,2661.4,2661.0,3.7579]
[1739206084923,0.7891,2661.4,2661.1,3.75783]
[1739206085127,1.55331472,2661.7,2661.3,3.75756]
[1739206085332,0.7891,2662.0,2661.7,3.75689]
[1739206085697,6.64194828,2662.4,2661.8,3.83885737]
[1739206085897,4.54526,2662.3,2661.8,0.08210737]
[1739206086439,0.7891,2662.3,2661.5,7.51454]
[1739206086744,4.31637165,2662.7,2662.0,4.56164]
[1739206086922,4.31637165,2662.7,2662.2,3.75627]
[1739206087131,8.07196165,2662.7,2662.1,0.08160114]
[1739206087424,3.75588,2662.5,2662.2,0.08149161]
[1739206087605,0.55,2662.6,2662.1,3.75637]
[1739206087812,3.67495828,2662.7,2662.2,0.08149161]
[1739206088018,3.67495828,2662.7,2662.2,3.75617]
[1739206088243,3.67495828,2662.7,2662.3,0.08138209]
[1739206088418,3.55,2662.6,2662.1,3.7563]
[1739206088601,3.55,2662.6,2662.2,0.08149161]
[1739206089742,3.67495828,2663.0,2662.6,3.7557]
[1739206090249,3.75535,2662.9,2662.7,0.08071053]
[1739206090412,3.75544,2662.8,2662.3,3.75607]
[1739206090738,3.75544,2662.8,2662.4,0.08102969]
[1739206090938,0.55,2662.7,2662.4,0.08102969]
[1739206091142,0.55,2662.7,2662.1,3.7564]
[1739206091143,4.30559,2662.7,2662.1,3.7564]
[1739206091350,4.30559,2662.7,2662.5,0.08086104]
[1739206091554,3.75576,2662.6,2662.1,3.75633]
[1739206091858,4.30559,2662.7,2662.1,7.51264]
[1739206092047,0.55,2662.8,2662.2,3.75616]
[1739206092285,3.75567,2662.7,2662.2,3.75616]
[1739206093687,4.30546,2662.8,2662.2,3.75616]
[1739206093889,3.7556,2662.7,2662.2,3.75616]
[1739206094091,7.51132,2662.7,2662.0,8.31808]
[1739206094295,4.51737,2662.5,2662.0,3.75646]
[1739206094588,4.51737,2662.5,2661.9,3.75659]
[1739206094886,4.51737,2662.5,2662.0,3.75649]
[1739206095688,0.7615,2662.5,2662.0,3.75645]
[1739206095897,4.51741,2662.5,2662.0,3.75645]
[1739206096751,0.7615,2662.5,2662.0,3.75645]
[1739206097182,0.7615,2662.5,2662.0,7.51292]
[1739206097399,0.7615,2662.5,2662.0,7.51294]
[1739206097662,0.7615,2662.5,2662.1,3.75642]
[1739206097862,0.7615,2662.5,2662.0,3.75645]
[1739206098097,0.7615,2662.5,2662.2,3.75627]
[1739206098574,0.7615,2662.5,2662.0,3.75647]
[1739206098776,3.75622,2662.3,2661.8,3.75675]
[1739206099177,3.75635,2662.2,2661.7,0.7729]
[1739206099673,3.75621,2662.3,2661.7,0.7729]
[1739206099909,3.75621,2662.3,2661.8,3.75685]
[1739206100110,7.19189828,2662.4,2661.9,3.75666]
[1739206100438,0.7615,2662.5,2662.0,3.83751623]
[1739206100609,0.7615,2662.5,2662.0,0.08096623]
[1739206100932,0.7615,2662.5,2661.8,0.03756315]
[1739206101137,0.7615,2662.9,2662.2,0.7729]
[1739206101334,0.7615,2662.9,2662.5,3.75579]
[1739206101543,4.51659,2663.1,2662.5,7.51155]
[1739206101694,0.7615,2663.1,2662.6,0.08026865]
[1739206101886,3.75517,2663.0,2662.6,0.08026865]
[1739206102105,7.51041,2663.0,2662.6,0.08026865]
[1739206102288,3.75537,2662.9,2662.6,0.08026865]
[1739206102805,6.64102828,2663.0,2662.7,0.08006577]
[1739206103005,2.88585828,2663.0,2662.3,3.75603]
[1739206103202,3.75553,2662.8,2662.4,0.08037248]
[1739206103857,3.75533,2662.9,2662.4,3.83632248]
[1739206104905,6.64107828,2663.0,2662.4,3.83632248]
[1739206105112,3.75547,2662.8,2662.4,3.83632248]
[1739206105856,3.7553,2662.9,2662.4,3.83632248]
[1739206106020,3.75551,2662.8,2662.4,0.08037248]
[1739206106227,3.75551,2662.8,2662.3,3.75615]
[1739206106428,3.75551,2662.8,2662.4,0.08037248]
[1739206106958,4.51662,2663.1,2662.6,3.7556]
[1739206107311,0.55,2663.0,2662.7,0.08004399]
[1739206107470,4.3052,2663.0,2662.7,0.08004399]
[1739206107967,0.7615,2663.1,2662.7,3.75547]
[1739206108118,6.64061828,2663.3,2662.9,3.75529]
[1739206108325,3.75476,2663.3,2662.8,3.83522626]
[1739206108548,7.5096,2663.3,2663.0,0.07959732]
[1739206108869,3.75476,2663.3,2663.1,0.07948786]
[1739206109218,0.7615,2663.4,2662.7,0.7729]
[1739206109419,4.51561,2663.8,2663.4,3.75456]
[1739206109640,3.0,2663.7,2663.5,0.07905012]
[1739206109927,6.75419,2663.7,2663.1,7.50984]
[1739206110139,7.30419,2663.7,2663.6,0.07884423]
[1739206110373,6.75419,2663.7,2663.2,3.75485]
[1739206110533,3.75419,2663.7,2663.6,0.07884423]
[1739206110870,4.51561,2663.8,2663.6,0.07884423]
[1739206111073,4.51561,2663.8,2663.2,4.52775]
[1739206111074,3.75417,2663.7,2663.2,4.52775]
[1739206112580,3.75453,2663.5,2663.0,3.75508]
[1739206112735,3.75474,2663.3,2662.8,3.75534]
[1739206112938,3.75476,2663.3,2662.8,3.75534]
[1739206113134,3.7549,2663.2,2662.7,0.7729]
[1739206113450,3.75488,2663.2,2662.7,0.7729]
[1739206113775,3.75488,2663.2,2662.7,4.52839]
[1739206114849,3.75503,2663.1,2662.7,4.52839]
[1739206115046,3.75503,2663.1,2662.8,0.07949892]
[1739206115281,3.75503,2663.1,2662.6,3.75564]
[1739206115583,3.75503,2663.1,2662.6,3.75571]
[1739206115584,3.75504,2663.1,2662.6,3.75571]
[1739206115767,3.75489,2663.2,2662.7,3.75552]
[1739206115929,7.40219828,2663.3,2662.7,3.75552]
[1739206115930,0.7615,2663.3,2662.8,3.75544]
[1739206116133,0.7615,2663.3,2662.8,3.75534]
[1739206116383,4.51625,2663.3,2662.9,0.07951698]
[1739206117066,3.75489,2663.2,2662.9,0.07951698]
[1739206117292,3.75489,2663.2,2662.6,7.51127]
[1739206117575,3.75489,2663.2,2663.0,0.07939507]
[1739206117778,3.75489,2663.2,2662.6,3.75563]
[1739206118138,4.30489,2663.2,2662.6,3.75563]
[1739206118602,3.75502,2663.1,2662.7,0.07972349]
[1739206118890,0.55,2663.2,2662.7,3.83527349]
[1739206119099,4.30496,2663.2,2662.7,3.83527349]
[1739206119802,4.30496,2663.2,2662.7,0.07972349]
[1739206120090,3.75526,2663.0,2662.7,0.07972349]
[1739206120305,3.75527,2663.0,2662.7,0.07972349]
[1739206120455,0.55,2663.2,2662.4,3.75593]
[1739206120657,3.75519,2663.0,2662.5,3.75579]
[1739206120849,3.75509,2663.1,2662.5,3.83552687]
[1739206121284,3.75527,2663.0,2662.5,3.83552687]
[1739206121892,3.75511,2663.1,2662.5,0.07978687]
[1739206122099,3.75537,2662.9,2662.5,0.07978687]
[1739206122694,4.30517,2663.0,2662.5,3.83559687]
[1739206122897,3.75509,2663.1,2662.5,3.83559687]
[1739206123199,3.75509,2663.1,2662.6,3.75572]
[1739206123394,3.75509,2663.1,2662.6,3.83539738]
[1739206123592,4.30488,2663.2,2662.7,3.75558]
[1739206123821,3.75505,2663.1,2662.6,3.83538738]
[1739206123961,3.75505,2663.1,2662.7,0.07956789]
[1739206124506,3.75472,2663.4,2662.9,3.75523]
[1739206124659,3.66155828,2663.6,2662.8,4.54576]
[1739206124660,3.75476,2663.3,2662.8,4.54576]
[1739206124858,3.75476,2663.3,2663.0,0.07923947]
[1739206125164,7.29139151,2663.3,2663.1,0.07913001]